{"text_format":"1","workbook":"xlsx","n_sheets":5,"sheets":["ДАНО","111","222","333","Статистика"],"not_rendered":{"charts":0,"images":0,"macros":1,"external_links":1,"defined_names":7,"comments":3,"pivot_tables":0},"unopened":[],"bounds":{"document_bytes":16777216,"sheet_cells":100000,"rows_first":2000,"rows_last":500,"rows_between":2000,"halvings":0,"cell_chars":16384,"cell_head_chars":4096},"cells_cut":0,"cells_raw":0,"read":"whole","date_system":"1900"}

{"sheet":"ДАНО","index":0,"n_rows":31,"n_cols":4,"rows_kept":31,"cut":false,"hidden":false,"merged":[]}
["МАРКА и МОДЕЛЬ КОЛЕСА","СОСТОЯНИЕ","Номер колеса","тип события"]
["Goodyear Omnitrack MST II","Хорошее",1,"Прокол"]
["Goodyear Omnitrack MSS II","Среднее",2,"Взрыв"]
["Goodyear Omnitrack MSD II","Плохое",3,"Утилизация"]
["Bridgestone R164 ",null,4,"Переобувка"]
["Bridgestone M840",null,5,"Перекидка"]
["Bridgestone M748",null,6,"Замена/Утил. диска"]
["Yokohama MY507",null,7]
["Yokohama MY507A",null,8]
["Mishelin x multiway  hd xze",null,9]
["Michelin x multiway 3d xde",null,10]
["Bridgestone L355",null,11]
["Bridgestone RIB184",null,12]
["Yokohama LY717",null,13]
["Continental ",null,14]
["Yokohama 104 ZR",null,15]
[null,null,16]
[null,null,17]
[null,null,18]
[null,null,19]
[null,null,20]
[null,null,21]
[null,null,22]
[null,null,23]
[null,null,24]
[null,null,25]
[null,null,26]
[null,null,27]
[null,null,28]
[null,null,29]
[null,null,30]

{"sheet":"111","index":1,"n_rows":27,"n_cols":17,"rows_kept":27,"cut":false,"hidden":false,"merged":[[6,7,6,8],[7,7,7,8],[8,7,8,8],[9,7,9,8],[0,12,0,16],[4,12,5,16],[4,7,4,8],[5,7,5,8],[0,0,0,4],[0,6,0,7],[1,7,1,8],[2,7,2,8],[3,7,3,8],[10,7,10,8],[11,7,11,8],[12,7,12,8],[13,7,13,8],[16,0,16,8]]}
["А111ТС 123",null,null,null,null,null,"Пробег ТС:",null,149303,null,null,null,"Запаски"]
["ДАТА","номер колеса","Марка, модель шины","Старый пробег","Пробег ТС ","Пробег шины","состояние","Комментарий",null,null,null,null,"назначение","номер колеса","Марка, модель шины","пробег","Состояние"]
[null,1,"Bridgestone M840",null,99000,{"$f":"$I$1-E3+D3","v":50303},null,null,null,null,null,null,"Тягач",29,"Bridgestone M840",0]
[null,2,"Bridgestone M840",null,99000,50303,null,null,null,null,null,null,"Прицеп",30,"Yokohama MY507A",79368]
[null,3,"Goodyear Omnitrack MSD II",null,99000,50303,null,null,null,null,null,null,"Резерв"]
[null,4,"Goodyear Omnitrack MSD II",null,99000,50303]
[null,5,"Goodyear Omnitrack MSD II",null,99000,50303]
[null,6,"Goodyear Omnitrack MSD II",null,99000,50303]
["2018-08-25",11,"Goodyear Omnitrack MST II",null,148124,1179,"Хорошее"]
["2018-08-25",12,"Goodyear Omnitrack MST II",null,148124,1179,"Хорошее"]
[null,13,"Goodyear Omnitrack MST II",null,122537,26766,"Хорошее"]
[null,14,"Goodyear Omnitrack MST II",null,122537,26766,"Хорошее"]
[null,15,"Bridgestone M748",null,130890,18413,"Хорошее"]
[null,16,"Bridgestone M748",null,130890,18413,"Хорошее"]
[]
[]
["ВСЕ СОБЫТИЯ, СВЯЗАННЫЕ С КОЛЕСАМИ(ПРОКОЛЫ, ВЗРЫВЫ, РЕМОНТЫ, ЗАМЕНЫ, ПЕРЕОБУВКА)"]
["дата","номер колеса","Марка, модель шины","Водитель","Тип события","Пробег шины","Состояние шины","Комментарий, конечный результат","Сумма"]
["2018-08-25",7,"Yokohama MY507A","Воронцов А.А.","Переобувка",79368,"Среднее","Поставили на запаску"]
["2018-08-25",8,"Yokohama MY507A","Воронцов А.А.","Переобувка",79368,"Среднее","Поставили на запаску 056"]
[]
[]
[]
[]
[]
[]
[null,null,"Чтобы строчки отсюда копировались на лист \"Статистика\""]

{"sheet":"222","index":2,"n_rows":17,"n_cols":17,"rows_kept":17,"cut":false,"hidden":false,"merged":[[15,0,15,8],[4,7,4,8],[4,12,5,16],[5,7,5,8],[6,7,6,8],[7,7,7,8],[8,7,8,8],[9,7,9,8],[10,7,10,8],[11,7,11,8],[12,7,12,8],[13,7,13,8],[3,7,3,8],[0,0,0,4],[0,6,0,7],[0,12,0,16],[1,7,1,8],[2,7,2,8]]}
["Е222ТР 123",null,null,null,null,null,"Пробег ТС:",null,161246,null,null,null,"Запаски"]
["ДАТА","номер колеса","Марка, модель шины","Старый пробег","Пробег ТС ","Пробег шины","состояние","Комментарий",null,null,null,null,"назначение","номер колеса","Марка, модель шины","пробег","Состояние"]
[null,1,"Goodyear Omnitrack MSS II",null,109950,{"$f":"$I$1-E3+D3","v":51296},null,null,null,null,null,null,"Тягач",29]
[null,2,"Goodyear Omnitrack MSS II",null,109950,{"$f":"$I$1-E4+D4","v":51296},null,null,null,null,null,null,"Прицеп",30]
[null,3,"Goodyear Omnitrack MSD II",null,109950,51296,null,null,null,null,null,null,"Резерв"]
[null,4,"Goodyear Omnitrack MSD II",null,109950,51296,"Хорошее"]
[null,5,"Goodyear Omnitrack MSD II",null,109950,51296]
[null,6,"Goodyear Omnitrack MSD II",null,109950,51296]
[null,11,"Goodyear Omnitrack MST II",null,87866,73380]
[null,12,"Goodyear Omnitrack MST II",null,87866,73380]
[null,13,"Goodyear Omnitrack MST II",null,156000,5246]
[null,14,"Goodyear Omnitrack MST II",null,156000,5246]
[null,15,"Goodyear Omnitrack MST II",null,156000,5246]
[null,16,"Goodyear Omnitrack MST II",null,156000,5246]
[]
["ВСЕ СОБЫТИЯ, СВЯЗАННЫЕ С КОЛЕСАМИ(ПРОКОЛЫ, ВЗРЫВЫ, РЕМОНТЫ, ЗАМЕНЫ, ПЕРЕОБУВКА)"]
["дата","номер колеса","Марка, модель шины","Водитель","Тип события","Пробег шины","Состояние шины","Комментарий, конечный результат","Сумма"]

{"sheet":"333","index":3,"n_rows":22,"n_cols":17,"rows_kept":22,"cut":false,"hidden":false,"merged":[[20,0,20,8],[4,7,4,8],[4,12,5,16],[5,7,5,8],[6,7,6,8],[11,7,11,8],[12,7,12,8],[13,7,13,8],[14,7,14,8],[15,7,15,8],[16,7,16,8],[17,7,17,8],[3,7,3,8],[0,0,0,4],[0,6,0,7],[0,12,0,16],[1,7,1,8],[2,7,2,8]]}
["Е333УЕ 123",null,null,null,null,null,"Пробег ТС:",null,31130,null,null,null,"Запаски"]
["ДАТА","номер колеса","Марка, модель шины","Старый пробег","Пробег ТС ","Пробег шины","состояние","Комментарий",null,null,null,null,"назначение","номер колеса","Марка, модель шины","пробег","Состояние"]
[null,1,"Mishelin x multiway  hd xze",null,null,{"$f":"$I$1-E3+D3","v":31130},null,null,null,null,null,null,"Тягач",29,"Mishelin x multiway  hd xze",0]
[null,2,"Mishelin x multiway  hd xze",null,null,{"$f":"$I$1-E4+D4","v":31130},null,null,null,null,null,null,"Прицеп",30,"Yokohama MY507A",79368]
[null,3,"Michelin x multiway 3d xde",null,null,31130,null,null,null,null,null,null,"Резерв"]
[null,4,"Michelin x multiway 3d xde",null,null,31130]
[null,5,"Michelin x multiway 3d xde",null,null,31130]
[null,6,"Michelin x multiway 3d xde",null,null,31130]
[null,7,"Michelin x multiway 3d xde",null,null,31130]
[null,8,"Michelin x multiway 3d xde",null,null,31130]
[null,9,"Michelin x multiway 3d xde",null,null,31130]
[null,10,"Michelin x multiway 3d xde",null,null,31130]
["2018-06-27",11,"Bridgestone M748",26518,null,57648]
["2018-08-24",12,"Goodyear Omnitrack MST II",26518,null,57648,"Среднее"]
["2018-06-27",13,"Bridgestone M748",26518,null,57648]
["2018-06-27",14,"Bridgestone M748",26518,null,57648]
["2018-08-08",15,"Bridgestone M748",null,17952,13178]
["2018-08-08",16,"Bridgestone M748",null,17952,13178]
[]
[]
["ВСЕ СОБЫТИЯ, СВЯЗАННЫЕ С КОЛЕСАМИ(ПРОКОЛЫ, ВЗРЫВЫ, РЕМОНТЫ, ЗАМЕНЫ, ПЕРЕОБУВКА)"]
["дата","номер колеса","Марка, модель шины","Водитель","Тип события","Пробег шины","Состояние шины","Комментарий, конечный результат","Сумма"]

{"sheet":"Статистика","index":4,"n_rows":3,"n_cols":9,"rows_kept":3,"cut":false,"hidden":false,"merged":[]}
["МАШИНА","ДАТА","НОМЕР КОЛЕСА","Модель колеса","Водитель","ТИП СОБЫТИЯ","пробег","состояние","комментарий"]
["А111ТС 123","2018-08-25",7,"Yokohama MY507A","Воронцов А.А.","Переобувка",79368,"Среднее","Поставили на запаску"]
["А111ТС 123","2018-08-25",8,"Yokohama MY507A","Воронцов А.А.","Переобувка",79368,"Среднее","Поставили на запаску 056"]